{"text_format":"3","workbook":"xlsx","n_sheets":2,"sheets":["ProjectSchedule","About"],"not_rendered":{"images":1,"defined_names":7},"read":"whole","date_system":"1900"}

{"sheet":"ProjectSchedule","index":0,"n_rows":33,"n_cols":64,"rows_kept":33,"merged":[[2,2,2,3],[2,4,2,5],[3,2,3,3],[3,8,3,14],[3,15,3,21],[3,22,3,28],[3,29,3,35],[3,36,3,42],[3,43,3,49],[3,50,3,56],[3,57,3,63]]}
["Create a Project Schedule in this worksheet.\nEnter title of this project in cell B1. \nInformation about how to use this worksheet, including instructions for screen readers and the author of this workbook is in the About worksheet.\nContinue navigating down column A to hear further instructions.","PROJECT TITLE",{"$nulls":6},"SIMPLE GANTT CHART by Vertex42.com"]
["Enter Company Name in cell B2.","Company Name",{"$nulls":6},"https://www.vertex42.com/ExcelTemplates/simple-gantt-chart.html"]
["Enter the name of the Project Lead in cell B3. Enter the Project Start date in cell E3. Pooject Start: label is in cell C3.","Project Lead","Project Start:",null,{"$f":"TODAY()","v":"2022-02-16"}]
["The Display Week in cell E4  represents the starting week to display in the project schedule in cell I4. The project start date is considered Week 1. To change the display week, simply enter a new week number in cell E4.\nThe starting date for each week, starting with the display week from cell E4, starts in cell I4 and is auto calculated. There are 8 weeks represented in this view from cell I4 through cell BF4.\nYou should not modify these cells.\nDisplay Week: label is in cell C4.",null,"Display Week:",null,1,{"$nulls":3},{"$f":"I5","v":"2022-02-14"},{"$nulls":6},{"$f":"P5","v":"2022-02-21"},{"$nulls":6},{"$f":"W5","v":"2022-02-28"},{"$nulls":6},{"$f":"AD5","v":"2022-03-07"},{"$nulls":6},{"$f":"AK5","v":"2022-03-14"},{"$nulls":6},{"$f":"AR5","v":"2022-03-21"},{"$nulls":6},{"$f":"AY5","v":"2022-03-28"},{"$nulls":6},{"$f":"BF5","v":"2022-04-04"}]
["Cells I5 through BL5 contain the day number for the week represented in the cell block above each date cell and are auto calculated.\nYou should not modify these cells.\nToday's date is outlined in Red (hex #AD3815) from today's date in row 5 through the entire date column to the end of the project schedule.",{"$nulls":7},{"$f":"Project_Start-WEEKDAY(Project_Start,1)+2+7*(Display_Week-1)","v":"2022-02-14"},{"$f":"I5+1","v":"2022-02-15"},{"$f":"J5+1","v":"2022-02-16"},"2022-02-17","2022-02-18","2022-02-19","2022-02-20",{"$f":"O5+1","v":"2022-02-21"},{"$f":"P5+1","v":"2022-02-22"},"2022-02-23","2022-02-24","2022-02-25","2022-02-26","2022-02-27",{"$f":"V5+1","v":"2022-02-28"},{"$f":"W5+1","v":"2022-03-01"},"2022-03-02","2022-03-03","2022-03-04","2022-03-05","2022-03-06",{"$f":"AC5+1","v":"2022-03-07"},{"$f":"AD5+1","v":"2022-03-08"},"2022-03-09","2022-03-10","2022-03-11","2022-03-12","2022-03-13",{"$f":"AJ5+1","v":"2022-03-14"},{"$f":"AK5+1","v":"2022-03-15"},"2022-03-16","2022-03-17","2022-03-18","2022-03-19","2022-03-20",{"$f":"AQ5+1","v":"2022-03-21"},{"$f":"AR5+1","v":"2022-03-22"},"2022-03-23","2022-03-24","2022-03-25","2022-03-26","2022-03-27",{"$f":"AX5+1","v":"2022-03-28"},{"$f":"AY5+1","v":"2022-03-29"},{"$f":"AZ5+1","v":"2022-03-30"},"2022-03-31","2022-04-01","2022-04-02","2022-04-03",{"$f":"BE5+1","v":"2022-04-04"},{"$f":"BF5+1","v":"2022-04-05"},{"$f":"BG5+1","v":"2022-04-06"},"2022-04-07","2022-04-08","2022-04-09","2022-04-10"]
["This row contains headers for the project schedule that follows below them. \nNavigate from B6 through BL 6 to hear the content. The first letter of each day of the week for the date above that heading, starts in cell I6 and continues through cell BL6.\nAll project timeline charting is auto generated based on the start and end dates entered, using conditional formats.\nDo not modify content in cells within columns after column I starting with cell I7.","TASK","ASSIGNED\nTO","PROGRESS","START","END",null,"DAYS",{"$f":"LEFT(TEXT(I5,\"ddd\"),1)","v":"M"},{"$f":"LEFT(TEXT(J5,\"ddd\"),1)","v":"T"},"W","T","F","S","S","M","T","W","T","F","S","S","M","T","W","T","F","S","S","M","T","W","T","F","S","S","M","T","W","T","F","S","S","M",{"$f":"LEFT(TEXT(AS5,\"ddd\"),1)","v":"T"},"W","T","F","S","S","M","T","W","T","F","S","S","M","T","W","T","F","S","S"]
["Do not delete this row. This row is hidden to preserve a formula that is used to highlight the curren day within the project schedule. ",{"$nulls":6},{"$f":"IF(OR(ISBLANK(task_start),ISBLANK(task_end)),\"\",task_end-task_start+1)","v":""}]
["Cell B8 contains the Phase 1 sample title. \nEnter a new Title in cell B8.\nEnter a name to assign the phase to, if it applies for your project, in cell C8.\nEnter Progress for the entire phase, if it applies for your project, in cell D8.\nEnter the start and end dates for the entire phase, if it applies for your project, in cells E8 and F8. \nThe Gantt chart will automatically fill in the appropriate dates and shade according to the progress entered.\nTo delete the phase and work only from tasks, simply delete this row.","Phase 1 Title",{"$nulls":5},{"$f":"IF(OR(ISBLANK(task_start),ISBLANK(task_end)),\"\",task_end-task_start+1)","v":""}]
["Cell B9 contains the sample task \"Task 1.\" \nEnter a new task name in cell B9.\nEnter a person to assign the task to in cell C9.\nEnter progres of the task in cell D9. A progress bar appears in the cell and is shaded according to the number in the cell. For example, 50 percent progress would shade half of the cell.\nEnter task start date in cell E9.\nEnter task end date in cell F9.\nA status bar shaded for the dates entered appears in blocks starting from cell I9 through BL9. ","Task 1","Name",{"v":0.5,"d":"50%"},{"$f":"Project_Start","v":"2022-02-16"},{"$f":"E9+3","v":"2022-02-19"},null,4]
["Rows 10 through 13 repeat the pattern from row 9. \nRepeat the instructions from cell A9 for all task rows in this worksheet. Overwrite any sample data.\nA sample of another phase starts in cell A14. \nContinue entering tasks in cells A10 through A13 or go to cell A14 to learn more.","Task 2",null,{"v":0.6,"d":"60%"},{"$f":"F9","v":"2022-02-19"},{"$f":"E10+2","v":"2022-02-21"},null,3]
[null,"Task 3",null,{"v":0.5,"d":"50%"},{"$f":"F10","v":"2022-02-21"},{"$f":"E11+4","v":"2022-02-25"},null,5]
[null,"Task 4",null,{"v":0.25,"d":"25%"},{"$f":"F11","v":"2022-02-25"},{"$f":"E12+5","v":"2022-03-02"},null,6]
[null,"Task 5",null,null,{"$f":"E10+1","v":"2022-02-20"},{"$f":"E13+2","v":"2022-02-22"},null,3]
["The cell at right contains the Phase 2 sample title. \nYou can create a new phase at any time within column B. This project schedule does not require phases. To remove the phase, simply delete the row.\nTo create a new phase block in this row, enter a new Title in cell at right.\nTo continue adding tasks to the phase above, enter a new row above this one and fill in the task data as in cell A9's instruction.\nUpdate the Phase details in cell at right based on cell A8's instruction.\nContinue navigating down column A cells to learn more.\nIf you haven't added any new rows in this worksheet, you will find 2 additional sample phase blocks have been created for you in cells B20 and B26. Otherwise, navigate through column A cells to find the additional blocks. \nRepeat the instructions from cells A8 and A9 whenever you need to.","Phase 2 Title",{"$nulls":5},""]
[null,"Task 1",null,{"v":0.5,"d":"50%"},{"$f":"E13+1","v":"2022-02-21"},{"$f":"E15+4","v":"2022-02-25"},null,5]
[null,"Task 2",null,{"v":0.5,"d":"50%"},{"$f":"E15+2","v":"2022-02-23"},{"$f":"E16+5","v":"2022-02-28"},null,6]
[null,"Task 3",null,null,{"$f":"F16","v":"2022-02-28"},{"$f":"E17+3","v":"2022-03-03"},null,4]
[null,"Task 4",null,null,{"$f":"E17","v":"2022-02-28"},{"$f":"E18+2","v":"2022-03-02"},null,3]
[null,"Task 5",null,null,{"$f":"E18","v":"2022-02-28"},{"$f":"E19+3","v":"2022-03-03"},null,4]
["Sample phase title block","Phase 3 Title",{"$nulls":5},""]
[null,"Task 1",null,null,{"$f":"E9+15","v":"2022-03-03"},{"$f":"E21+5","v":"2022-03-08"},null,6]
[null,"Task 2",null,null,{"$f":"F21+1","v":"2022-03-09"},{"$f":"E22+4","v":"2022-03-13"},null,5]
[null,"Task 3",null,null,{"$f":"E22+5","v":"2022-03-14"},{"$f":"E23+5","v":"2022-03-19"},null,6]
[null,"Task 4",null,null,{"$f":"F23+1","v":"2022-03-20"},{"$f":"E24+4","v":"2022-03-24"},null,5]
[null,"Task 5",null,null,{"$f":"E23","v":"2022-03-14"},{"$f":"E25+4","v":"2022-03-18"},null,5]
["Sample phase title block","Phase 4 Title",{"$nulls":5},""]
[null,"Task 1",null,null,"date","date",null,{"$error":"#VALUE!"}]
[null,"Task 2",null,null,"date","date",null,{"$error":"#VALUE!"}]
[null,"Task 3",null,null,"date","date",null,{"$error":"#VALUE!"}]
[null,"Task 4",null,null,"date","date",null,{"$error":"#VALUE!"}]
[null,"Task 5",null,null,"date","date",null,{"$error":"#VALUE!"}]
["This is an empty row",{"$nulls":6},""]
["This row marks the end of the Project Schedule. DO NOT enter anything in this row. \nInsert new rows ABOVE this one to continue building out your Project Schedule.","Insert new rows ABOVE this one",{"$nulls":5},""]

{"sheet":"About","index":1,"n_rows":16,"n_cols":1,"rows_kept":16}
[]
["SIMPLE GANTT CHART by Vertex42.com"]
["https://www.vertex42.com/ExcelTemplates/simple-gantt-chart.html"]
["About This Template"]
["This template provides a simple way to create a Gantt chart to help visualise and track your project. Simply enter your tasks and start and end dates - no formulae required. The bars in the Gantt chart represent the duration of the task and are displayed using conditional formatting. Insert new tasks by inserting new rows."]
["Guide for Screen Readers"]
["There are 2 worksheets in this workbook. \n\nTimeSheet\nAbout\n\nThe instructions for each worksheet are in the A column starting in cell A1 of each worksheet. They are written with hidden text. Each step guides you through the information in that row. Each subsequent step continues in cell A2, A3, and so on, unless otherwise explicitly directed. For example, instruction text might say \"continue to cell A6\" for the next step. \n\nThis hidden text will not print.\n\nTo remove these instructions from the worksheet, simply delete column A."]
["Additional Help"]
["Click on the link below to visit vertex42.com and learn more about how to use this template, such as how to calculate days and work days, create task dependencies, change the colours of the bars, add a scroll bar to make it easier to change the display week, extend the date range displayed in the chart, etc."]
["How to Use the Simple Gantt Chart"]
["More Project Management Templates"]
["Visit Vertex42.com to download other project management templates, including different types of project schedules, Gantt charts, tasks lists, etc."]
["Project Management Templates"]
["About Vertex42"]
["Vertex42.com provides over 300 professionally designed spreadsheet templates for business, home, and education - most of which are free to download. Their collection includes a variety of calendars, planners, and schedules as well as personal finance spreadsheets for budgeting, debt reduction, and loan amortisation."]
["Businesses will find invoices, time sheets, inventory trackers, financial statements, and project planning templates. Teachers and students will find resources such as class schedules, grade books, and attendance sheets. Organise your family life with meal planners, checklists, and exercise logs. Each template is thoroughly researched, refined, and improved over time through feedback from thousands of users."]